Workbook

Sheet App 2-H_Other Rev
P1: File Number: | Q1: EB-2025-0252
P2: Exhibit:
P3: Tab:
A4: TO BE UPDATED AT THE DRAFT RATE ORDER STAGE | P4: Schedule:
P5: Page:
P7: Date: | Q7: 2026-02-20
A9: Appendix 2-H
A10: Other Operating Revenue
D11: =IF(D13=2015,5,IF(D13=2016,6,IF(D13=2017,7,IF(D13=2018,8,IF(D13=2019,9,IF(D13=2020,10)))))) -> 8 | E11: 9 | F11: 10 | G11: FALSE | H11: FALSE | I11: FALSE | J11: =IF(J13=2015,5,IF(J13=2016,6,IF(J13=2017,7,IF(J13=2018,8,IF(J13=2019,9,IF(J13=2020,10,IF(J13=2021,11))))))) -> FALSE | K11: =IF(K13=2015,5,IF(K13=2016,6,IF(K13=2017,7,IF(K13=2018,8,IF(K13=2019,9,IF(K13=2020,10,IF(K13=2021,11,IF(K13=2022,12)))))))) -> FALSE
A12: USoA # | B12: USoA Description | C12: =D13 - 1 &" Actual"&CHAR(178) -> 2017 Actual² | D12: 2018 Actual² | E12: 2019 Actual² | F12: 2020 Actual² | G12: 2021 Actual² | H12: 2022 Actual² | I12: 2023 Actual² | J12: =J13 & " Actual" & CHAR(178) -> 2024 Actual² | K12: =K13 & " Actual" & CHAR(178) -> 2025 Actual² | L12: Bridge Year | M12: Test Year | N12: Forecast | O12: Forecast | P12: Forecast | Q12: Forecast
C13: =D13-1 -> 2017 | D13: 2018 | E13: 2019 | F13: 2020 | G13: 2021 | H13: 2022 | I13: 2023 | J13: 2024 | K13: 2025 | L13: =2026 -> 2026 | M13: =2027 -> 2027 | N13: =M13+1 -> 2028 | O13: =N13+1 -> 2029 | P13: 2030 | Q13: 2031
B14: Reporting Basis | C14: MIFRS | D14: MIFRS | E14: MIFRS | F14: MIFRS | G14: MIFRS | H14: MIFRS | I14: MIFRS | J14: MIFRS | K14: MIFRS | L14: MIFRS | M14: MIFRS | N14: MIFRS | O14: MIFRS | P14: MIFRS | Q14: MIFRS
A15: 4082 | B15: Retail Services Revenues | C15: 758572.38 | D15: 663750.22 | E15: 470501.08 | F15: 352727.91 | G15: 252403.55 | H15: 162652.59 | I15: 63114.16 | J15: 301379.98 | K15: 307825.87 | L15: 309041.52 | M15: 309041.52 | N15: 309041.52 | O15: 309041.52 | P15: 309041.52 | Q15: 309041.52
A16: 4084 | B16: Service Transaction Requests (STR) Revenues | C16: 24656.63 | D16: 43131.8 | E16: 8823.75 | F16: 13983.09 | G16: 9415.37 | H16: 7802.86 | I16: 9626.59 | J16: 8108.94 | K16: 7554.89
A17: 4086 | B17: SSS Administration Revenue | C17: 540507.45 | D17: 597648.29 | E17: 3204121.15 | F17: 3131232.89 | G17: 3149346.86 | H17: 3159261.39 | I17: 3205659.73 | J17: 3237112.2 | K17: 3244882.09 | L17: 3234542.78 | M17: 3248725.896 | N17: 3264076.404 | O17: 3280056.284 | P17: 3296012.346 | Q17: 3312084.423
A18: 4090 | B18: Electric Services Incidental to Energy Sales | C18: -1.55
A19: 4205 | B19: Interdepartmental Rents
A20: 4210 | B20: Rent from Electric Property | C20: 2937904.95 | D20: 3075116.2 | E20: 3917802.29 | F20: 3553620.07 | G20: 3631406.9 | H20: 3708864.84 | I20: 4056767.27 | J20: 3974374.91 | K20: 4152819.12 | L20: 3953325.44 | M20: 6594401.03 | N20: 6710737.88 | O20: 6829401.46 | P20: 6950438.31 | Q20: 7073895.91
A21: 4215 | B21: Other Utility Operating Income
A22: 4220 | B22: Other Electric Revenues | C22: 15400 | D22: 16800
A23: 4225 | B23: Late Payment Charges | C23: 5063281.06 | D23: 5777388.01 | E23: 6914200.65 | F23: 6011376.58 | G23: 10920622.71 | H23: 12579796.05 | I23: 10383939.91 | J23: 9355836.36 | K23: 9977683.28 | L23: 8075709 | M23: 8548591 | N23: 8895848 | O23: 9344786 | P23: 9885022 | Q23: 10457369
A24: 4230 | B24: Sales of Water and Water Power
A25: 4235 | B25: Miscellaneous Service Revenues | C25: 9257004.46 | D25: 15745220.79 | E25: 10881927.07 | F25: 8768811.72 | G25: 7459583.97 | H25: 7049465.99 | I25: 6259683.62 | J25: 8319032.13 | K25: 8251943.19 | L25: 7315481.579 | M25: 8837092.51 | N25: 8876356.645 | O25: 8916558.305 | P25: 8955699.384 | Q25: 8994507.911
A26: 4240 | B26: Provision for Rate Refunds
A27: 4245 | B27: Government and Other Assistance Directly Credited to Income | C27: 5873983.61 | D27: 8713799.57 | E27: 10305195.55
A28: 4305 | B28: Regulatory Debits* | E28: -1664748.06 | F28: -7676245.71 | G28: -8151310.07 | H28: -7177637.53 | I28: -12013433.37 | J28: -12546722.38 | K28: -15238964.77 | L28: -14373890.72
A29: 4310 | B29: Regulatory Credits | E29: 2193284.97 | F29: 2090468.73 | G29: 3018661.22 | H29: 2841788.97 | I29: 2506696.25 | J29: 2941535.35 | K29: 3950334.4 | L29: 3068999.62
A30: 4315 | B30: Revenues from Electric Plant Leased to Others
A31: 4320 | B31: Expenses of Electric Plant Leased to Others
A32: 4325 | B32: Revenues from Merchandise | C32: 333361.65 | D32: 99211.94 | E32: 296272.67
A33: 4330 | B33: Costs and Expenses of Merchandising
A34: 4335 | B34: Profits and Losses from Financial Instrument Hedges
A35: 4340 | B35: Profits and Losses from Financial Instrument Investments
A36: 4345 | B36: Gains from Disposition of Future Use Utility Plant
A37: 4350 | B37: Losses from Disposition of Future Use Utility Plant
A38: 4355 | B38: Gain on Disposition of Utility and Other Property | C38: -1043202.39 | D38: 305471.56 | E38: 73154.9 | F38: 9354.76 | I38: 3207750.3 | J38: 1062831.37 | K38: 642609.05
A39: 4357 | B39: Gain from Retirement of Utility and Other Property
A40: 4360 | B40: Loss on Disposition of Utility and Other Property | C40: -2835.31 | D40: -21320.98 | E40: 1973535.76 | F40: 524896.13 | G40: 11657191.8 | H40: -8476349 | I40: -5839054.31 | J40: -10709907.69 | K40: -6696444.29 | L40: -6435213.36 | M40: -6009074.18 | N40: -5978635.66 | O40: -5978635.66 | P40: -5978635.66 | Q40: -5978635.66
A41: 4362 | B41: Loss from Retirement of Utility and Other Property | C41: -2143536.22 | D41: -4748776
A42: 4365 | B42: Gains from Disposition of Allowances for Emission
A43: 4370 | B43: Losses from Disposition of Allowances for Emission
A44: 4375 | B44: Revenues from Non Rate-Regulated Utility Operations | C44: 59919126.78 | D44: 85264691.13 | E44: 65916424.99 | F44: 34976061.43 | G44: 50479088.64 | H44: 25909565.26 | I44: 18693473.93 | J44: 13359563.31 | K44: 12635130.25 | L44: 4600384.72 | M44: 4242037.23 | N44: 4129778.77 | O44: 95141.52 | P44: 95141.52 | Q44: 95141.52
A45: 4380 | B45: Expenses of Non Rate-Regulated Utility Operations | C45: -71438170.34 | D45: -71558824.16 | E45: -60922046.86 | F45: -27389981.7 | G45: -30511705.05 | H45: -18226943.69 | I45: -6364541.859 | J45: -5961750.08 | K45: -6223735.16 | L45: -84263.8935 | M45: -85969.24357 | N45: -87331.27184 | O45: -88720.56 | P45: -90137.64 | Q45: -91583.05
A46: 4385 | B46: Non Rate-Regulated Utility Rental Income | E46: 143733.23 | F46: 203650.19 | G46: 150430.48 | H46: 184350.19 | I46: 183894.9 | J46: 146196.91 | K46: 117267.26 | L46: 121112.77 | M46: 124958.27 | N46: 124958.27 | O46: 124958.27 | P46: 124958.27 | Q46: 124958.27
A47: 4390 | B47: Miscellaneous Non-Operating Income | C47: 5401988.69 | D47: 4840053.36 | E47: 8650763.74 | F47: 5240980.48 | G47: 6192314.28 | H47: 5913013.49 | I47: 7567297.37 | J47: 5126755.72 | K47: 8935730.02 | L47: 5016398.69 | M47: 5039941.84 | N47: 5073407.88 | O47: 5107576.15 | P47: 5142461.67 | Q47: 5178079.45
A48: 4395 | B48: Rate-Payer Benefit Including Interest
A49: 4398 | B49: Foreign Exchange Gains and Losses, Including Amortization
A50: 4405 | B50: Interest and Dividend Income | C50: 2422889.58 | D50: 1994082.72 | E50: 732661.73 | F50: 236028.33 | G50: -171432.38 | H50: 456170.33 | I50: 2532914.94 | J50: 6557076.94 | K50: 5009061.27 | L50: 1100000 | M50: 1100000 | N50: 1100000 | O50: 1100000 | P50: 1100000 | Q50: 1100000
A51: 4410 | B51: Lessor's Net Investment in Finance Lease
A52: 4415 | B52: Equity in Earnings of Subsidiary Companies
A53: 4420 | B53: Share of Profit or Loss of Joint Venture
A65: Miscellaneous Service Revenues | C65: =C25 -> 9257004.46 | D65: =D25 -> 15745220.79 | E65: 10881927.07 | F65: 8768811.72 | G65: 7459583.97 | H65: 7049465.99 | I65: 6259683.62 | J65: 8319032.13 | K65: 8251943.19 | L65: 7315481.579 | M65: 8837092.51 | N65: =N25 -> 8876356.645 | O65: 8916558.305 | P65: 8955699.384 | Q65: 8994507.911
A66: Late Payment Charges | C66: =C23 -> 5063281.06 | D66: =D23 -> 5777388.01 | E66: 6914200.65 | F66: 6011376.58 | G66: 10920622.71 | H66: 12579796.05 | I66: 10383939.91 | J66: 9355836.36 | K66: 9977683.28 | L66: 8075709 | M66: 8548591 | N66: =N23 -> 8895848 | O66: 9344786 | P66: 9885022 | Q66: 10457369
A67: Other Operating Revenues | C67: 10151023.47 | D67: 13110246.08 | E67: 17906443.82 | F67: 7051563.96 | G67: 7042572.68 | H67: 7038581.68 | I67: 7335167.75 | J67: 7520976.03 | K67: 7713081.97 | L67: 7496909.74 | M67: 10152168.45 | N67: 10283855.8 | O67: 10418499.26 | P67: 10555492.18 | Q67: 10695021.85
A68: Other Income or Deductions | C68: -6550377.56 | D68: 16174589.57 | E68: 17393037.07 | F68: 8215212.64 | G68: 32663238.92 | H68: 1423958.02 | I68: 10474998.15 | J68: -24420.55 | K68: 3130988.03 | L68: -6986472.173 | M68: 4411893.916 | N68: 4362177.988 | O68: 360319.72 | P68: 393788.16 | Q68: 427960.53
A69: Total | C69: =SUM(C65:C68) -> 17920931.43 | D69: =SUM(D65:D68) -> 50807444.45 | E69: =SUM(E65:E68) -> 53095608.61 | F69: =SUM(F65:F68) -> 30046964.9 | G69: =SUM(G65:G68) -> 58086018.28 | H69: =SUM(H65:H68) -> 28091801.74 | I69: 34453789.43 | J69: 25171423.97 | K69: 29073696.47 | L69: 15901628.14 | M69: 31949745.87 | N69: =SUM(N65:N68) -> 32418238.44 | O69: 29040163.29 | P69: 29790001.72 | Q69: 30574859.29
A70: * | B70: In accordance with IR 9-Staff-246, USoA 4305 is restated to exclude deferred amounts for 2025-2026 Useful Life and DLC Changes denied in 2026 IRM (EB-2025-0055).
A71: Description Account(s)
A72: Specific Service Charges: 4235
A73: Late Payment Charges: 4225
A74: Other Distribution Revenues: 4082, 4084, 4086, 4090, 4205, 4210, 4215, 4220, 4230, 4240, 4245
A75: Other Income and Expenses: 4305, 4310, 4315, 4320, 4325, 4330, 4335, 4340, 4345, 4350, 4355, 4357, 4360, 4362, 4365, 4370, 4375, 4380, 4385, 4390, 4395, 4398, 4405, 4410, 4415, 4420
A78: Note: Add all applicable accounts listed above to the table and include all relevant information.
A80: Account Breakdown Details
A82: For each "Other Operating Revenue" and "Other Income or Deductions" Account, a detailed breakdown of the account components is required. See the example below for Account 4405, Interest and Dividend Income. Tables for the detailed breakdowns will be generated after cell B101 is filled in.
A85: Example: Account 4405 - Interest and Dividend Income
C86: =C12 -> 2017 Actual² | D86: =D12 -> 2018 Actual² | E86: 2019 Actual² | F86: 2020 Actual² | G86: 2021 Actual² | H86: 2022 Actual² | I86: 2023 Actual² | J86: 2024 Actual² | K86: 2025 Actual² | L86: Bridge Year | M86: Test Year
C87: =C13 -> 2017 | D87: 2018 | E87: 2019 | F87: 2020 | G87: 2021 | H87: 2022 | I87: 2023 | J87: 2024 | K87: 2025 | L87: 2026 | M87: 2027
A88: Reporting Basis | C88: =IF(C14=0, "", C14) -> MIFRS | D88: =IF(D14=0, "", D14) -> MIFRS | E88: =IF(E14=0, "", E14) -> MIFRS | F88: =IF(F14=0, "", F14) -> MIFRS | G88: =IF($G$14=0, "", $G$14) -> MIFRS | H88: =IF($H$14=0, "", $H$14) -> MIFRS | I88: =IF($I$14=0, "", $I$14) -> MIFRS | J88: =IF($J$14=0, "", $J$14) -> MIFRS | K88: =IF($K$14=0, "", $K$14) -> MIFRS | L88: =IF($L$14=0, "", $L$14) -> MIFRS | M88: =IF($M$14=0, "", $M$14) -> MIFRS
A89: Short-term Investment Interest
A90: Bank Deposit Interest
A91: Miscellaneous Interest Revenue
A92: etc.1
A95: Total | C95: =SUM(C89:C94) -> 0 | D95: 0 | E95: 0 | F95: 0 | G95: 0 | H95: 0 | I95: 0 | J95: 0 | K95: 0 | L95: 0 | M95: 0
A98: Notes:
A99: 1 | B99: List and specify any other interest revenue.
A100: 2 | B100: For applicants rebasing under IFRS for the first time, in the transition year (2014) to IFRS, the applicant is to present information in both MIFRS and CGAAP.
D101: Enter the number of "Other Operating Revenue" and "Other Income or Deductions" Accounts that require a detailed breakdown of the account components.
A105: Account 4082 - Retail Services Revenues
C106: =C$12 -> 2017 Actual² | D106: 2018 Actual² | E106: 2019 Actual² | F106: 2020 Actual² | G106: 2021 Actual² | H106: 2022 Actual² | I106: 2023 Actual² | J106: 2024 Actual² | K106: 2025 Actual² | L106: Bridge Year | M106: Test Year | N106: Forecast | O106: Forecast | P106: Forecast | Q106: Forecast
C107: =C$13 -> 2017 | D107: 2018 | E107: 2019 | F107: 2020 | G107: 2021 | H107: 2022 | I107: 2023 | J107: 2024 | K107: 2025 | L107: 2026 | M107: 2027 | N107: 2028 | O107: 2029 | P107: 2030 | Q107: 2031
A108: Reporting Basis | C108: =IF($G$14=0, "", $G$14) -> MIFRS | D108: MIFRS | E108: MIFRS | F108: MIFRS | G108: =IF($G$14=0, "", $G$14) -> MIFRS | H108: =IF($H$14=0, "", $H$14) -> MIFRS | I108: =IF($I$14=0, "", $I$14) -> MIFRS | J108: =IF($J$14=0, "", $J$14) -> MIFRS | K108: =IF($K$14=0, "", $K$14) -> MIFRS | L108: =IF($L$14=0, "", $L$14) -> MIFRS | M108: =IF($M$14=0, "", $M$14) -> MIFRS | N108: =IF($M$14=0, "", $M$14) -> MIFRS | O108: MIFRS | P108: MIFRS | Q108: MIFRS
A109: Monthly Fixed Charge | C109: 13317.53585 | D109: 16232.9749 | E109: 23842.73663 | F109: 26651.0047 | G109: 24068.56822 | H109: 16085.7 | I109: 20309.1 | J109: 19033.33 | K109: 13812.07 | L109: 19219.43371 | M109: 14664.60287 | N109: 14664.60287 | O109: 14664.60287 | P109: 14664.60287 | Q109: 14664.60287
A110: Monthly Variable Charge | C110: 168053.6831 | D110: 204843.5424 | E110: 300870.9532 | F110: 336308.4245 | G110: 303720.717 | H110: 266654.64 | I110: 255637.93 | J110: 240181.16 | K110: 238176.52 | L110: 242529.5985 | M110: 185052.2913 | N110: 185052.2913 | O110: 185052.2913 | P110: 185052.2913 | Q110: 185052.2913
A111: RCVA Adjustment | C111: 477918.9209 | D111: 321656.8622 | E111: -31960.23 | F111: -208914.78 | G111: -254816.93 | H111: -278869.51 | I111: -364088.85 | J111: -99728 | K111: -84317.73 | L111: -95988.40557
A112: Distributor-consolidated billing Charge | C112: 99282.24014 | D112: 121016.8405 | E112: 177747.6201 | F112: 198683.2608 | G112: 179431.1948 | H112: 158781.76 | I112: 151255.98 | J112: 141893.49 | K112: 140155.01 | L112: 143280.8933 | M112: 109324.6258 | N112: 109324.6258 | O112: 109324.6258 | P112: 109324.6258 | Q112: 109324.6258
A117: Total | C117: =SUM(C109:C116) -> 758572.38 | D117: 663750.22 | E117: 470501.08 | F117: 352727.91 | G117: 252403.55 | H117: =SUM(H109:H116) -> 162652.59 | I117: 63114.16 | J117: 301379.98 | K117: 307825.87 | L117: 309041.52 | M117: 309041.52 | N117: =SUM(N109:N116) -> 309041.52 | O117: 309041.52 | P117: 309041.52 | Q117: 309041.52
A119: Account 4084 - Service Transaction Requests Revenues
C120: =C$12 -> 2017 Actual² | D120: 2018 Actual² | E120: 2019 Actual² | F120: 2020 Actual² | G120: 2021 Actual² | H120: 2022 Actual² | I120: 2023 Actual² | J120: 2024 Actual² | K120: 2025 Actual² | L120: Bridge Year | M120: Test Year | N120: Forecast | O120: Forecast | P120: Forecast | Q120: Forecast
C121: =C$13 -> 2017 | D121: 2018 | E121: 2019 | F121: 2020 | G121: 2021 | H121: 2022 | I121: 2023 | J121: 2024 | K121: 2025 | L121: 2026 | M121: 2027 | N121: 2028 | O121: 2029 | P121: 2030 | Q121: 2031
A122: Reporting Basis | C122: =IF($G$14=0, "", $G$14) -> MIFRS | D122: MIFRS | E122: MIFRS | F122: MIFRS | G122: =IF($G$14=0, "", $G$14) -> MIFRS | H122: =IF($H$14=0, "", $H$14) -> MIFRS | I122: =IF($I$14=0, "", $I$14) -> MIFRS | J122: =IF($J$14=0, "", $J$14) -> MIFRS | K122: =IF($K$14=0, "", $K$14) -> MIFRS | L122: =IF($L$14=0, "", $L$14) -> MIFRS | M122: =IF($M$14=0, "", $M$14) -> MIFRS | N122: =IF($M$14=0, "", $M$14) -> MIFRS | O122: MIFRS | P122: MIFRS | Q122: MIFRS
A123: Request Fee | C123: 1495.43309 | D123: 2615.958505 | E123: 535.1634724 | F123: 848.0792179 | G123: 571.0454288 | H123: 116.63 | I123: 627.07 | J123: 491.81 | K123: 170.04
A124: Processing Fee | C124: 23161.19691 | D124: 40515.8415 | E124: 8288.586528 | F124: 13135.01078 | G124: 8844.324571 | H124: 7686.23 | I124: 8999.52 | J124: 7617.13 | K124: 7384.85
A131: Total | C131: =SUM(C123:C130) -> 24656.63 | D131: 43131.8 | E131: 8823.75 | F131: 13983.09 | G131: 9415.37 | H131: 7802.86 | I131: 9626.59 | J131: 8108.94 | K131: 7554.89 | L131: 0 | M131: 0 | N131: =SUM(N123:N130) -> 0 | O131: 0 | P131: 0 | Q131: 0
A133: Account 4086 - SSS Administration Revenue
C134: =C$12 -> 2017 Actual² | D134: 2018 Actual² | E134: 2019 Actual² | F134: 2020 Actual² | G134: 2021 Actual² | H134: 2022 Actual² | I134: 2023 Actual² | J134: 2024 Actual² | K134: 2025 Actual² | L134: Bridge Year | M134: Test Year | N134: Forecast | O134: Forecast | P134: Forecast | Q134: Forecast
C135: =C$13 -> 2017 | D135: 2018 | E135: 2019 | F135: 2020 | G135: 2021 | H135: 2022 | I135: 2023 | J135: 2024 | K135: 2025 | L135: 2026 | M135: 2027 | N135: 2028 | O135: 2029 | P135: 2030 | Q135: 2031
A136: Reporting Basis | C136: =IF($H$14=0, "", $H$14) -> MIFRS | D136: MIFRS | E136: MIFRS | F136: MIFRS | G136: MIFRS | H136: =IF($H$14=0, "", $H$14) -> MIFRS | I136: =IF($I$14=0, "", $I$14) -> MIFRS | J136: =IF($J$14=0, "", $J$14) -> MIFRS | K136: =IF($K$14=0, "", $K$14) -> MIFRS | L136: =IF($L$14=0, "", $L$14) -> MIFRS | M136: =IF($M$14=0, "", $M$14) -> MIFRS | N136: =IF($M$14=0, "", $M$14) -> MIFRS | O136: MIFRS | P136: MIFRS | Q136: MIFRS
A137: Customer Administrative Charge | C137: 540507.45 | D137: 597648.29 | E137: 3204121.15 | F137: 3131232.89 | G137: 3149346.86 | H137: 3159261.39 | I137: 3205659.73 | J137: 3237112.2 | K137: 3244882.09 | L137: 3234542.78 | M137: 3248725.896 | N137: 3264076.404 | O137: 3280056.284 | P137: 3296012.346 | Q137: 3312084.423
A145: Total | C145: =SUM(C137:C144) -> 540507.45 | D145: 597648.29 | E145: 3204121.15 | F145: 3131232.89 | G145: 3149346.86 | H145: 3159261.39 | I145: 3205659.73 | J145: 3237112.2 | K145: 3244882.09 | L145: 3234542.78 | M145: 3248725.896 | N145: =SUM(N137:N144) -> 3264076.404 | O145: 3280056.284 | P145: 3296012.346 | Q145: 3312084.423
A147: Account 4210 - Rent from Electric Property
C148: =C$12 -> 2017 Actual² | D148: 2018 Actual² | E148: 2019 Actual² | F148: 2020 Actual² | G148: 2021 Actual² | H148: 2022 Actual² | I148: 2023 Actual² | J148: 2024 Actual² | K148: 2025 Actual² | L148: Bridge Year | M148: Test Year | N148: Forecast | O148: Forecast | P148: Forecast | Q148: Forecast
C149: =C$13 -> 2017 | D149: 2018 | E149: 2019 | F149: 2020 | G149: 2021 | H149: 2022 | I149: 2023 | J149: 2024 | K149: 2025 | L149: 2026 | M149: 2027 | N149: 2028 | O149: 2029 | P149: 2030 | Q149: 2031
A150: Reporting Basis | C150: =IF(C88=0, "", C88) -> MIFRS | D150: =IF(D88=0, "", D88) -> MIFRS | E150: =IF(E88=0, "", E88) -> MIFRS | F150: =IF(F88=0, "", F88) -> MIFRS | G150: =IF($G$14=0, "", $G$14) -> MIFRS | H150: =IF($H$14=0, "", $H$14) -> MIFRS | I150: =IF($I$14=0, "", $I$14) -> MIFRS | J150: =IF($J$14=0, "", $J$14) -> MIFRS | K150: =IF($K$14=0, "", $K$14) -> MIFRS | L150: =IF($L$14=0, "", $L$14) -> MIFRS | M150: =IF($M$14=0, "", $M$14) -> MIFRS | N150: =IF($M$14=0, "", $M$14) -> MIFRS | O150: MIFRS | P150: MIFRS | Q150: MIFRS
A151: Pole Rental Revenue | C151: 2937904.95 | D151: 3075116.2 | E151: 3917802.29 | F151: 3553620.07 | G151: 3631406.9 | H151: 3708864.84 | I151: 4056767.27 | J151: 3974374.91 | K151: 4152819.12 | L151: 3953325.44 | M151: 6594401.03 | N151: 6710737.88 | O151: 6829401.46 | P151: 6950438.31 | Q151: 7073895.91
A159: Total | C159: =SUM(C151:C158) -> 2937904.95 | D159: 3075116.2 | E159: 3917802.29 | F159: 3553620.07 | G159: 3631406.9 | H159: 3708864.84 | I159: 4056767.27 | J159: 3974374.91 | K159: 4152819.12 | L159: 3953325.44 | M159: 6594401.03 | N159: =SUM(N151:N158) -> 6710737.88 | O159: 6829401.46 | P159: 6950438.31 | Q159: 7073895.91
A161: Account 4245 - Government and Other Assistance Directly Credited to Income
C162: =C$12 -> 2017 Actual² | D162: 2018 Actual² | E162: 2019 Actual² | F162: 2020 Actual² | G162: 2021 Actual² | H162: 2022 Actual² | I162: 2023 Actual² | J162: 2024 Actual² | K162: 2025 Actual² | L162: Bridge Year | M162: Test Year | N162: Forecast | O162: Forecast | P162: Forecast | Q162: Forecast
C163: =C$13 -> 2017 | D163: 2018 | E163: 2019 | F163: 2020 | G163: 2021 | H163: 2022 | I163: 2023 | J163: 2024 | K163: 2025 | L163: 2026 | M163: 2027 | N163: 2028 | O163: 2029 | P163: 2030 | Q163: 2031
A164: Reporting Basis | C164: =IF($G$14=0, "", $G$14) -> MIFRS | D164: MIFRS | E164: MIFRS | F164: MIFRS | G164: =IF($G$14=0, "", $G$14) -> MIFRS | H164: =IF($H$14=0, "", $H$14) -> MIFRS | I164: =IF($I$14=0, "", $I$14) -> MIFRS | J164: =IF($J$14=0, "", $J$14) -> MIFRS | K164: =IF($K$14=0, "", $K$14) -> MIFRS | L164: =IF($L$14=0, "", $L$14) -> MIFRS | M164: =IF($M$14=0, "", $M$14) -> MIFRS | N164: =IF($M$14=0, "", $M$14) -> MIFRS | O164: MIFRS | P164: MIFRS | Q164: MIFRS
A165: Government and Other Assistance | C165: 5873983.61 | D165: 8713799.57 | E165: 10305195.55
A173: Total | C173: =SUM(C165:C172) -> 5873983.61 | D173: 8713799.57 | E173: 10305195.55 | F173: 0 | G173: 0 | H173: 0 | I173: 0 | J173: 0 | K173: 0 | L173: 0 | M173: 0 | N173: =SUM(N165:N172) -> 0 | O173: 0 | P173: 0 | Q173: 0
A175: Account 4305 - Regulatory Debits
C176: =C$12 -> 2017 Actual² | D176: 2018 Actual² | E176: 2019 Actual² | F176: 2020 Actual² | G176: 2021 Actual² | H176: 2022 Actual² | I176: 2023 Actual² | J176: 2024 Actual² | K176: 2025 Actual² | L176: Bridge Year | M176: Test Year | N176: Forecast | O176: Forecast | P176: Forecast | Q176: Forecast
C177: =C$13 -> 2017 | D177: 2018 | E177: 2019 | F177: 2020 | G177: 2021 | H177: 2022 | I177: 2023 | J177: 2024 | K177: 2025 | L177: 2026 | M177: 2027 | N177: 2028 | O177: 2029 | P177: 2030 | Q177: 2031
A178: Reporting Basis | C178: =IF($G$14=0, "", $G$14) -> MIFRS | D178: MIFRS | E178: MIFRS | F178: MIFRS | G178: =IF($G$14=0, "", $G$14) -> MIFRS | H178: =IF($H$14=0, "", $H$14) -> MIFRS | I178: =IF($I$14=0, "", $I$14) -> MIFRS | J178: =IF($J$14=0, "", $J$14) -> MIFRS | K178: =IF($K$14=0, "", $K$14) -> MIFRS | L178: =IF($L$14=0, "", $L$14) -> MIFRS | M178: =IF($M$14=0, "", $M$14) -> MIFRS | N178: =IF($M$14=0, "", $M$14) -> MIFRS | O178: MIFRS | P178: MIFRS | Q178: MIFRS
A179: Capitalization Policy Impact | C179: 0 | D179: 0 | E179: -1664748.06 | F179: -7676245.71 | G179: -8151310.07 | H179: -7177638.02 | I179: -7812802.74 | J179: -7297660.79 | K179: -9816684.19 | L179: -7502467.112
A180: Locate Revenue | H180: 0 | I180: -4200630.63 | J180: -5249061.59 | K180: -5422280.58 | L180: -6871423.608
A187: Total | C187: =SUM(C179:C186) -> 0 | D187: =SUM(D179:D186) -> 0 | E187: -1664748.06 | F187: -7676245.71 | G187: -8151310.07 | H187: -7177638.02 | I187: -12013433.37 | J187: -12546722.38 | K187: -15238964.77 | L187: -14373890.72 | M187: 0 | N187: =SUM(N179:N186) -> 0 | O187: 0 | P187: 0 | Q187: 0
A189: Account 4310 - Regulatory Credits
C190: =C$12 -> 2017 Actual² | D190: 2018 Actual² | E190: 2019 Actual² | F190: 2020 Actual² | G190: 2021 Actual² | H190: 2022 Actual² | I190: 2023 Actual² | J190: 2024 Actual² | K190: 2025 Actual² | L190: Bridge Year | M190: Test Year | N190: Forecast | O190: Forecast | P190: Forecast | Q190: Forecast
C191: =C$13 -> 2017 | D191: 2018 | E191: 2019 | F191: 2020 | G191: 2021 | H191: 2022 | I191: 2023 | J191: 2024 | K191: 2025 | L191: 2026 | M191: 2027 | N191: 2028 | O191: 2029 | P191: 2030 | Q191: 2031
A192: Reporting Basis | C192: =IF($G$14=0, "", $G$14) -> MIFRS | D192: MIFRS | E192: MIFRS | F192: MIFRS | G192: =IF($G$14=0, "", $G$14) -> MIFRS | H192: =IF($H$14=0, "", $H$14) -> MIFRS | I192: =IF($I$14=0, "", $I$14) -> MIFRS | J192: =IF($J$14=0, "", $J$14) -> MIFRS | K192: =IF($K$14=0, "", $K$14) -> MIFRS | L192: =IF($L$14=0, "", $L$14) -> MIFRS | M192: =IF($M$14=0, "", $M$14) -> MIFRS | N192: =IF($M$14=0, "", $M$14) -> MIFRS | O192: MIFRS | P192: MIFRS | Q192: MIFRS
A193: Capitalization Policy Impact | C193: 0 | D193: 0 | E193: 2193284.97 | F193: 2090468.73 | G193: 3018661.22 | H193: 2841788.97 | I193: 2506696.25 | J193: 2941535.35 | K193: 3950334.4 | L193: 3068999.62
A201: Total | C201: =SUM(C193:C200) -> 0 | D201: 0 | E201: 2193284.97 | F201: 2090468.73 | G201: 3018661.22 | H201: 2841788.97 | I201: 2506696.25 | J201: 2941535.35 | K201: 3950334.4 | L201: 3068999.62 | M201: 0 | N201: =SUM(N193:N200) -> 0 | O201: 0 | P201: 0 | Q201: 0
A203: Account 4355 - Gain on Disposition of Utility and Other Property
C204: =C$12 -> 2017 Actual² | D204: 2018 Actual² | E204: 2019 Actual² | F204: 2020 Actual² | G204: 2021 Actual² | H204: 2022 Actual² | I204: 2023 Actual² | J204: 2024 Actual² | K204: 2025 Actual² | L204: Bridge Year | M204: Test Year | N204: Forecast | O204: Forecast | P204: Forecast | Q204: Forecast
C205: =C$13 -> 2017 | D205: 2018 | E205: 2019 | F205: 2020 | G205: 2021 | H205: 2022 | I205: 2023 | J205: 2024 | K205: 2025 | L205: 2026 | M205: 2027 | N205: 2028 | O205: 2029 | P205: 2030 | Q205: 2031
A206: Reporting Basis | C206: =IF($G$14=0, "", $G$14) -> MIFRS | D206: MIFRS | E206: MIFRS | F206: MIFRS | G206: =IF($G$14=0, "", $G$14) -> MIFRS | H206: =IF($H$14=0, "", $H$14) -> MIFRS | I206: =IF($I$14=0, "", $I$14) -> MIFRS | J206: =IF($J$14=0, "", $J$14) -> MIFRS | K206: =IF($K$14=0, "", $K$14) -> MIFRS | L206: =IF($L$14=0, "", $L$14) -> MIFRS | M206: =IF($M$14=0, "", $M$14) -> MIFRS | N206: =IF($M$14=0, "", $M$14) -> MIFRS | O206: MIFRS | P206: MIFRS | Q206: MIFRS
A207: Gain on disposition of PP&E | C207: -1043202.39 | D207: 305471.56 | E207: 73154.9 | F207: 9354.76 | G207: 0 | H207: 0 | I207: 3207750.3 | J207: 1062831.37 | K207: 642609.05
A215: Total | C215: =SUM(C207:C214) -> -1043202.39 | D215: 305471.56 | E215: 73154.9 | F215: 9354.76 | G215: 0 | H215: 0 | I215: 3207750.3 | J215: 1062831.37 | K215: 642609.05 | L215: 0 | M215: 0 | N215: =SUM(N207:N214) -> 0 | O215: 0 | P215: 0 | Q215: 0
A217: Account 4360 - Loss on Disposition of Utility and Other Property
C218: =C$12 -> 2017 Actual² | D218: 2018 Actual² | E218: 2019 Actual² | F218: 2020 Actual² | G218: 2021 Actual² | H218: 2022 Actual² | I218: 2023 Actual² | J218: 2024 Actual² | K218: 2025 Actual² | L218: Bridge Year | M218: Test Year | N218: Forecast | O218: Forecast | P218: Forecast | Q218: Forecast
C219: =C$13 -> 2017 | D219: 2018 | E219: 2019 | F219: 2020 | G219: 2021 | H219: 2022 | I219: 2023 | J219: 2024 | K219: 2025 | L219: 2026 | M219: 2027 | N219: 2028 | O219: 2029 | P219: 2030 | Q219: 2031
A220: Reporting Basis | C220: =IF($G$14=0, "", $G$14) -> MIFRS | D220: MIFRS | E220: MIFRS | F220: MIFRS | G220: =IF($G$14=0, "", $G$14) -> MIFRS | H220: =IF($H$14=0, "", $H$14) -> MIFRS | I220: =IF($I$14=0, "", $I$14) -> MIFRS | J220: =IF($J$14=0, "", $J$14) -> MIFRS | K220: =IF($K$14=0, "", $K$14) -> MIFRS | L220: =IF($L$14=0, "", $L$14) -> MIFRS | M220: =IF($M$14=0, "", $M$14) -> MIFRS | N220: =IF($M$14=0, "", $M$14) -> MIFRS | O220: MIFRS | P220: MIFRS | Q220: MIFRS
A221: Derecognition of PP&E | C221: -2835.31 | D221: -21320.98 | E221: 1973535.76 | F221: 524896.13 | G221: 11657191.8 | H221: -8476349 | I221: -5839054.31 | J221: -10709907.69 | K221: -6696444.29 | L221: -6435213.36 | M221: -6009074.18 | N221: -5978635.66 | O221: -5978635.66 | P221: -5978635.66 | Q221: -5978635.66
A229: Total | C229: =SUM(C221:C228) -> -2835.31 | D229: -21320.98 | E229: 1973535.76 | F229: 524896.13 | G229: 11657191.8 | H229: -8476349 | I229: -5839054.31 | J229: -10709907.69 | K229: -6696444.29 | L229: -6435213.36 | M229: -6009074.18 | N229: =SUM(N221:N228) -> -5978635.66 | O229: -5978635.66 | P229: -5978635.66 | Q229: -5978635.66
A231: Account 4375 - Revenues from Non Rate-Regulated Utility Operations
C232: =C$12 -> 2017 Actual² | D232: 2018 Actual² | E232: 2019 Actual² | F232: 2020 Actual² | G232: 2021 Actual² | H232: 2022 Actual² | I232: 2023 Actual² | J232: 2024 Actual² | K232: 2025 Actual² | L232: Bridge Year | M232: Test Year | N232: Forecast | O232: Forecast | P232: Forecast | Q232: Forecast
C233: =C$13 -> 2017 | D233: 2018 | E233: 2019 | F233: 2020 | G233: 2021 | H233: 2022 | I233: 2023 | J233: 2024 | K233: 2025 | L233: 2026 | M233: 2027 | N233: 2028 | O233: 2029 | P233: 2030 | Q233: 2031
A234: Reporting Basis | C234: =IF($G$14=0, "", $G$14) -> MIFRS | D234: MIFRS | E234: MIFRS | F234: MIFRS | G234: =IF($G$14=0, "", $G$14) -> MIFRS | H234: =IF($H$14=0, "", $H$14) -> MIFRS | I234: =IF($I$14=0, "", $I$14) -> MIFRS | J234: =IF($J$14=0, "", $J$14) -> MIFRS | K234: =IF($K$14=0, "", $K$14) -> MIFRS | L234: =IF($L$14=0, "", $L$14) -> MIFRS | M234: =IF($M$14=0, "", $M$14) -> MIFRS | N234: =IF($M$14=0, "", $M$14) -> MIFRS | O234: MIFRS | P234: MIFRS | Q234: MIFRS
A235: Water Billing Revenues | C235: 7945373.87 | D235: 8920627.6 | E235: 10972651.4 | F235: 10699454.72 | G235: 11011063.41 | H235: 11357015.09 | I235: 11655404.04 | J235: 11912590.69 | K235: 12807599.4 | L235: 4505243.2 | M235: 4146895.71 | N235: 4034637.25
A236: Other Non-Utility Revenues | C236: 51973752.91 | D236: 76344063.53 | E236: 54943773.59 | F236: 24276606.71 | G236: 39468025.23 | H236: 14552550.17 | I236: 7038069.89 | J236: 1446972.62 | K236: -172469.15 | L236: 95141.52 | M236: 95141.52 | N236: 95141.52 | O236: 95141.52 | P236: 95141.52 | Q236: 95141.52
A243: Total | C243: =SUM(C235:C242) -> 59919126.78 | D243: 85264691.13 | E243: 65916424.99 | F243: 34976061.43 | G243: 50479088.64 | H243: 25909565.26 | I243: 18693473.93 | J243: 13359563.31 | K243: 12635130.25 | L243: 4600384.72 | M243: 4242037.23 | N243: 4129778.77 | O243: 95141.52 | P243: 95141.52 | Q243: 95141.52
A245: Account 4380 - Expenses of Non Rate-Regulated Utility Operations
C246: =C$12 -> 2017 Actual² | D246: 2018 Actual² | E246: 2019 Actual² | F246: 2020 Actual² | G246: 2021 Actual² | H246: 2022 Actual² | I246: 2023 Actual² | J246: 2024 Actual² | K246: 2025 Actual² | L246: Bridge Year | M246: Test Year | N246: Forecast | O246: Forecast | P246: Forecast | Q246: Forecast
C247: =C$13 -> 2017 | D247: 2018 | E247: 2019 | F247: 2020 | G247: 2021 | H247: 2022 | I247: 2023 | J247: 2024 | K247: 2025 | L247: 2026 | M247: 2027 | N247: 2028 | O247: 2029 | P247: 2030 | Q247: 2031
A248: Reporting Basis | C248: =IF($G$14=0, "", $G$14) -> MIFRS | D248: MIFRS | E248: MIFRS | F248: MIFRS | G248: =IF($G$14=0, "", $G$14) -> MIFRS | H248: =IF($H$14=0, "", $H$14) -> MIFRS | I248: =IF($I$14=0, "", $I$14) -> MIFRS | J248: =IF($J$14=0, "", $J$14) -> MIFRS | K248: =IF($K$14=0, "", $K$14) -> MIFRS | L248: =IF($L$14=0, "", $L$14) -> MIFRS | M248: =IF($M$14=0, "", $M$14) -> MIFRS | N248: =IF($M$14=0, "", $M$14) -> MIFRS | O248: MIFRS | P248: MIFRS | Q248: MIFRS
A249: Water Billing Expenses | C249: -4938442.208 | D249: -4946782.874 | E249: -4211474.148 | F249: -4873208.535 | G249: -5146947.9 | H249: -5283772.466 | I249: -5411899.569 | J249: -5624777.392 | K249: -6059723.327
A250: Other Non-Utility Expenses | C250: -66499728.13 | D250: -66612041.29 | E250: -56710572.71 | F250: -22516773.17 | G250: -25364757.15 | H250: -12943171.22 | I250: -952642.2902 | J250: -336972.6882 | K250: -164011.8328 | L250: -84263.8935 | M250: -85969.24357 | N250: -87331.27184 | O250: -88720.56 | P250: -90137.64 | Q250: -91583.05
A257: Total | C257: =SUM(C249:C256) -> -71438170.34 | D257: -71558824.16 | E257: -60922046.86 | F257: -27389981.7 | G257: -30511705.05 | H257: -18226943.69 | I257: -6364541.859 | J257: -5961750.08 | K257: -6223735.16 | L257: -84263.8935 | M257: -85969.24357 | N257: =SUM(N249:N256) -> -87331.27184 | O257: -88720.56 | P257: -90137.64 | Q257: -91583.05
A259: Account 4385 - Non Rate-Regulated Utility Rental Income
C260: =C$12 -> 2017 Actual² | D260: 2018 Actual² | E260: 2019 Actual² | F260: 2020 Actual² | G260: 2021 Actual² | H260: 2022 Actual² | I260: 2023 Actual² | J260: 2024 Actual² | K260: 2025 Actual² | L260: Bridge Year | M260: Test Year | N260: Forecast | O260: Forecast | P260: Forecast | Q260: Forecast
C261: L | D261: =D$13 -> 2018 | E261: 2019 | F261: 2020 | G261: 2021 | H261: 2022 | I261: 2023 | J261: 2024 | K261: 2025 | L261: 2026 | M261: 2027 | N261: 2028 | O261: 2029 | P261: 2030 | Q261: 2031
A262: Reporting Basis | C262: =IF($G$14=0, "", $G$14) -> MIFRS | D262: MIFRS | E262: MIFRS | F262: MIFRS | G262: =IF($G$14=0, "", $G$14) -> MIFRS | H262: =IF($H$14=0, "", $H$14) -> MIFRS | I262: =IF($I$14=0, "", $I$14) -> MIFRS | J262: =IF($J$14=0, "", $J$14) -> MIFRS | K262: =IF($K$14=0, "", $K$14) -> MIFRS | L262: =IF($L$14=0, "", $L$14) -> MIFRS | M262: =IF($M$14=0, "", $M$14) -> MIFRS | N262: =IF($M$14=0, "", $M$14) -> MIFRS | O262: MIFRS | P262: MIFRS | Q262: MIFRS
A263: Rental Income | C263: 0 | D263: 0 | E263: 143733.23 | F263: 203650.19 | G263: 150430.48 | H263: 184350.19 | I263: 183894.9 | J263: 146196.91 | K263: 117267.26 | L263: 121112.77 | M263: 124958.27 | N263: 124958.27 | O263: 124958.27 | P263: 124958.27 | Q263: 124958.27
A271: Total | C271: =SUM(C263:C270) -> 0 | D271: 0 | E271: 143733.23 | F271: 203650.19 | G271: 150430.48 | H271: 184350.19 | I271: 183894.9 | J271: 146196.91 | K271: 117267.26 | L271: 121112.77 | M271: 124958.27 | N271: =SUM(N263:N270) -> 124958.27 | O271: 124958.27 | P271: 124958.27 | Q271: 124958.27
A273: Account 4390 - Miscellaneous Non-Operating Income
C274: =C$12 -> 2017 Actual² | D274: 2018 Actual² | E274: 2019 Actual² | F274: 2020 Actual² | G274: 2021 Actual² | H274: 2022 Actual² | I274: 2023 Actual² | J274: 2024 Actual² | K274: 2025 Actual² | L274: Bridge Year | M274: Test Year | N274: Forecast | O274: Forecast | P274: Forecast | Q274: Forecast
C275: =C$13 -> 2017 | D275: 2018 | E275: 2019 | F275: 2020 | G275: 2021 | H275: 2022 | I275: 2023 | J275: 2024 | K275: 2025 | L275: 2026 | M275: 2027 | N275: 2028 | O275: 2029 | P275: 2030 | Q275: 2031
A276: Reporting Basis | C276: =IF($G$14=0, "", $G$14) -> MIFRS | D276: MIFRS | E276: MIFRS | F276: MIFRS | G276: =IF($G$14=0, "", $G$14) -> MIFRS | H276: =IF($H$14=0, "", $H$14) -> MIFRS | I276: =IF($I$14=0, "", $I$14) -> MIFRS | J276: =IF($J$14=0, "", $J$14) -> MIFRS | K276: =IF($K$14=0, "", $K$14) -> MIFRS | L276: =IF($L$14=0, "", $L$14) -> MIFRS | M276: =IF($M$14=0, "", $M$14) -> MIFRS | N276: =IF($M$14=0, "", $M$14) -> MIFRS | O276: MIFRS | P276: MIFRS | Q276: MIFRS
A277: Miscellaneous Non-Operating Revenues | C277: 5401988.69 | D277: 4840053.36 | E277: 8650763.74 | F277: 5240980.48 | G277: 6192314.28 | H277: 5913013.49 | I277: 7567297.37 | J277: 5126755.72 | K277: 8935730.02 | L277: 5016398.69 | M277: 5039941.84 | N277: 5073407.88 | O277: 5107576.15 | P277: 5142461.67 | Q277: 5178079.45
A285: Total | C285: =SUM(C277:C284) -> 5401988.69 | D285: 4840053.36 | E285: 8650763.74 | F285: 5240980.48 | G285: 6192314.28 | H285: 5913013.49 | I285: 7567297.37 | J285: 5126755.72 | K285: 8935730.02 | L285: 5016398.69 | M285: 5039941.84 | N285: =SUM(N277:N284) -> 5073407.88 | O285: 5107576.15 | P285: 5142461.67 | Q285: 5178079.45
A287: Account 4405 - Interest and Dividend Income
C288: =C$12 -> 2017 Actual² | D288: 2018 Actual² | E288: 2019 Actual² | F288: 2020 Actual² | G288: 2021 Actual² | H288: 2022 Actual² | I288: 2023 Actual² | J288: 2024 Actual² | K288: 2025 Actual² | L288: Bridge Year | M288: Test Year | N288: Forecast | O288: Forecast | P288: Forecast | Q288: Forecast
C289: =C$13 -> 2017 | D289: 2018 | E289: 2019 | F289: 2020 | G289: 2021 | H289: 2022 | I289: 2023 | J289: 2024 | K289: 2025 | L289: 2026 | M289: 2027 | N289: 2028 | O289: 2029 | P289: 2030 | Q289: 2031
A290: Reporting Basis | C290: =IF($G$14=0, "", $G$14) -> MIFRS | D290: MIFRS | E290: MIFRS | F290: MIFRS | G290: =IF($G$14=0, "", $G$14) -> MIFRS | H290: =IF($H$14=0, "", $H$14) -> MIFRS | I290: =IF($I$14=0, "", $I$14) -> MIFRS | J290: =IF($J$14=0, "", $J$14) -> MIFRS | K290: =IF($K$14=0, "", $K$14) -> MIFRS | L290: =IF($L$14=0, "", $L$14) -> MIFRS | M290: =IF($M$14=0, "", $M$14) -> MIFRS | N290: =IF($M$14=0, "", $M$14) -> MIFRS | O290: MIFRS | P290: MIFRS | Q290: MIFRS
A291: Bank Deposit Interest | C291: 2422889.58 | D291: 1994082.72 | E291: 815912.6586 | F291: 638696.8308 | G291: 253855.0208 | H291: 892763.3703 | I291: 2980094.999 | J291: 7021846.889 | K291: 5509770.384 | L291: 1100000 | M291: 1100000 | N291: 1100000 | O291: 1100000 | P291: 1100000 | Q291: 1100000
A292: Other Interest | C292: 0 | D292: 0 | E292: -83250.92857 | F292: -402668.5008 | G292: -425287.4008 | H292: -436593.0403 | I292: -447180.0593 | J292: -464769.9492 | K292: -500709.1138
A299: Total | C299: =SUM(C291:C298) -> 2422889.58 | D299: 1994082.72 | E299: 732661.73 | F299: 236028.33 | G299: -171432.38 | H299: 456170.33 | I299: 2532914.94 | J299: 6557076.94 | K299: 5009061.27 | L299: 1100000 | M299: 1100000 | N299: =SUM(N291:N298) -> 1100000 | O299: 1100000 | P299: 1100000 | Q299: 1100000
A301: Account 4235 - Miscellaneous Revenues
C302: =C$12 -> 2017 Actual² | D302: 2018 Actual² | E302: 2019 Actual² | F302: 2020 Actual² | G302: 2021 Actual² | H302: 2022 Actual² | I302: 2023 Actual² | J302: 2024 Actual² | K302: 2025 Actual² | L302: Bridge Year | M302: Test Year | N302: Forecast | O302: Forecast | P302: Forecast | Q302: Forecast
C303: =C$13 -> 2017 | D303: 2018 | E303: 2019 | F303: 2020 | G303: 2021 | H303: 2022 | I303: 2023 | J303: 2024 | K303: 2025 | L303: 2026 | M303: 2027 | N303: 2028 | O303: 2029 | P303: 2030 | Q303: 2031
A304: Reporting Basis | C304: =IF($G$14=0, "", $G$14) -> MIFRS | D304: MIFRS | E304: MIFRS | F304: MIFRS | G304: =IF($G$14=0, "", $G$14) -> MIFRS | H304: =IF($H$14=0, "", $H$14) -> MIFRS | I304: =IF($I$14=0, "", $I$14) -> MIFRS | J304: =IF($J$14=0, "", $J$14) -> MIFRS | K304: =IF($K$14=0, "", $K$14) -> MIFRS | L304: =IF($L$14=0, "", $L$14) -> MIFRS | M304: =IF($M$14=0, "", $M$14) -> MIFRS | N304: =IF($M$14=0, "", $M$14) -> MIFRS | O304: MIFRS | P304: MIFRS | Q304: MIFRS
A305: SSC Revenues | E305: 1989347.89 | F305: 3043174.88 | G305: 3480880.42 | H305: 2971802.31 | I305: 3129411.21 | J305: 3379178.75 | K305: 3799214.35 | L305: 3193550.437 | M305: 7102011.881 | N305: 7141276.055 | O305: 7181477.517 | P305: 7220618.666 | Q305: 7259427.349
A306: MicroFIT Revenues | E306: 379824 | F306: 409555.57 | G306: 362298.24 | H306: 361982.52 | I306: 359384.48 | J306: 369884.27 | K306: 395056.48 | L306: 362523 | M306: 362523 | N306: 362523 | O306: 362523 | P306: 362523 | Q306: 362523
A307: Collection of Account Deferral | E307: 1659877.27 | F307: 2390780.39 | G307: 2354187.33 | H307: 2530775.57 | I307: 2630741.15 | J307: 2607559.9 | K307: 2674662.05 | L307: 2386851.18 | M307: 0 | N307: 0 | O307: 0 | P307: 0 | Q307: 0
A308: Other Miscellaneous Revenues | C308: 9257004.46 | D308: 15745220.79 | E308: 6852877.91 | F308: 2925300.88 | G308: 1262217.98 | H308: 1184905.59 | I308: 140146.78 | J308: 1962409.21 | K308: 1383010.31 | L308: 1372556.961 | M308: 1372557.63 | N308: 1372557.59 | O308: 1372557.789 | P308: 1372557.718 | Q308: 1372557.563
A313: Total | C313: =SUM(C305:C312) -> 9257004.46 | D313: 15745220.79 | E313: 10881927.07 | F313: 8768811.72 | G313: 7459583.97 | H313: 7049465.99 | I313: 6259683.62 | J313: 8319032.13 | K313: 8251943.19 | L313: 7315481.579 | M313: 8837092.51 | N313: =SUM(N305:N312) -> 8876356.645 | O313: 8916558.305 | P313: 8955699.384 | Q313: 8994507.911
A314: Total | D314: =SUM(D306:D313) -> 31490441.58 | E314: 19774506.25 | F314: 14494448.56 | G314: 11438287.52 | H314: 11127129.67 | I314: 9389956.03 | J314: 13258885.51 | K314: 12704672.03 | L314: 11437412.72 | M314: 10572173.14 | O314: =SUM(O306:O313) -> 10651639.09
D317: =D$12 -> 2018 Actual² | E317: 2019 Actual² | F317: 2020 Actual² | G317: 2021 Actual² | H317: 2022 Actual² | I317: 2023 Actual² | J317: 2024 Actual² | K317: 2025 Actual² | L317: Bridge Year | M317: Test Year | O317: =O$12 -> Forecast
D318: =D$13 -> 2018 | E318: 2019 | F318: 2020 | G318: 2021 | H318: 2022 | I318: 2023 | J318: 2024 | K318: 2025 | L318: 2026 | M318: 2027 | O318: =O$13 -> 2029
A319: Reporting Basis | D319: =IF(D270=0, "", D270) ->  | E319: =IF(E270=0, "", E270) ->  | F319: =IF(F270=0, "", F270) ->  | G319: =IF($G$14=0, "", $G$14) -> MIFRS | H319: =IF($H$14=0, "", $H$14) -> MIFRS | I319: =IF($I$14=0, "", $I$14) -> MIFRS | J319: =IF($J$14=0, "", $J$14) -> MIFRS | K319: =IF($K$14=0, "", $K$14) -> MIFRS | L319: =IF($L$14=0, "", $L$14) -> MIFRS | M319: =IF($M$14=0, "", $M$14) -> MIFRS | O319: =IF($O$14=0, "", $O$14) -> MIFRS
A328: Total | D328: =SUM(D320:D327) -> 0 | E328: 0 | F328: 0 | G328: 0 | H328: 0 | I328: 0 | J328: 0 | K328: 0 | L328: 0 | M328: 0 | O328: =SUM(O320:O327) -> 0
D331: =D$12 -> 2018 Actual² | E331: 2019 Actual² | F331: 2020 Actual² | G331: 2021 Actual² | H331: 2022 Actual² | I331: 2023 Actual² | J331: 2024 Actual² | K331: 2025 Actual² | L331: Bridge Year | M331: Test Year | O331: =O$12 -> Forecast
D332: =D$13 -> 2018 | E332: 2019 | F332: 2020 | G332: 2021 | H332: 2022 | I332: 2023 | J332: 2024 | K332: 2025 | L332: 2026 | M332: 2027 | O332: =O$13 -> 2029
A333: Reporting Basis | D333: =IF(D284=0, "", D284) ->  | E333: =IF(E284=0, "", E284) ->  | F333: =IF(F284=0, "", F284) ->  | G333: =IF($G$14=0, "", $G$14) -> MIFRS | H333: =IF($H$14=0, "", $H$14) -> MIFRS | I333: =IF($I$14=0, "", $I$14) -> MIFRS | J333: =IF($J$14=0, "", $J$14) -> MIFRS | K333: =IF($K$14=0, "", $K$14) -> MIFRS | L333: =IF($L$14=0, "", $L$14) -> MIFRS | M333: =IF($M$14=0, "", $M$14) -> MIFRS | O333: =IF($O$14=0, "", $O$14) -> MIFRS
A342: Total | D342: =SUM(D334:D341) -> 0 | E342: 0 | F342: 0 | G342: 0 | H342: 0 | I342: 0 | J342: 0 | K342: 0 | L342: 0 | M342: 0 | O342: =SUM(O334:O341) -> 0
D345: =D$12 -> 2018 Actual² | E345: 2019 Actual² | F345: 2020 Actual² | G345: 2021 Actual² | H345: 2022 Actual² | I345: 2023 Actual² | J345: 2024 Actual² | K345: 2025 Actual² | L345: Bridge Year | M345: Test Year | O345: =O$12 -> Forecast
D346: =D$13 -> 2018 | E346: 2019 | F346: 2020 | G346: 2021 | H346: 2022 | I346: 2023 | J346: 2024 | K346: 2025 | L346: 2026 | M346: 2027 | O346: =O$13 -> 2029
A347: Reporting Basis | D347: =IF(D298=0, "", D298) ->  | E347: =IF(E298=0, "", E298) ->  | F347: =IF(F298=0, "", F298) ->  | G347: =IF($G$14=0, "", $G$14) -> MIFRS | H347: =IF($H$14=0, "", $H$14) -> MIFRS | I347: =IF($I$14=0, "", $I$14) -> MIFRS | J347: =IF($J$14=0, "", $J$14) -> MIFRS | K347: =IF($K$14=0, "", $K$14) -> MIFRS | L347: =IF($L$14=0, "", $L$14) -> MIFRS | M347: =IF($M$14=0, "", $M$14) -> MIFRS | O347: =IF($O$14=0, "", $O$14) -> MIFRS
A356: Total | D356: =SUM(D348:D355) -> 0 | E356: 0 | F356: 0 | G356: 0 | H356: 0 | I356: 0 | J356: 0 | K356: 0 | L356: 0 | M356: 0 | O356: =SUM(O348:O355) -> 0
D359: =D$12 -> 2018 Actual² | E359: 2019 Actual² | F359: 2020 Actual² | G359: 2021 Actual² | H359: 2022 Actual² | I359: 2023 Actual² | J359: 2024 Actual² | K359: 2025 Actual² | L359: Bridge Year | M359: Test Year | O359: =O$12 -> Forecast
D360: =D$13 -> 2018 | E360: 2019 | F360: 2020 | G360: 2021 | H360: 2022 | I360: 2023 | J360: 2024 | K360: 2025 | L360: 2026 | M360: 2027 | O360: =O$13 -> 2029
A361: Reporting Basis | D361: =IF(#REF!=0, "",#REF!) ->  | E361: =IF(#REF!=0, "",#REF!) ->  | F361: =IF(#REF!=0, "",#REF!) ->  | G361: =IF($G$14=0, "", $G$14) -> MIFRS | H361: =IF($H$14=0, "", $H$14) -> MIFRS | I361: =IF($I$14=0, "", $I$14) -> MIFRS | J361: =IF($J$14=0, "", $J$14) -> MIFRS | K361: =IF($K$14=0, "", $K$14) -> MIFRS | L361: =IF($L$14=0, "", $L$14) -> MIFRS | M361: =IF($M$14=0, "", $M$14) -> MIFRS | O361: =IF($O$14=0, "", $O$14) -> MIFRS
A370: Total | D370: =SUM(D362:D369) -> 0 | E370: 0 | F370: 0 | G370: 0 | H370: 0 | I370: 0 | J370: 0 | K370: 0 | L370: 0 | M370: 0 | O370: =SUM(O362:O369) -> 0
D373: =D$12 -> 2018 Actual² | E373: 2019 Actual² | F373: 2020 Actual² | G373: 2021 Actual² | H373: 2022 Actual² | I373: 2023 Actual² | J373: 2024 Actual² | K373: 2025 Actual² | L373: Bridge Year | M373: Test Year | O373: =O$12 -> Forecast
D374: =D$13 -> 2018 | E374: 2019 | F374: 2020 | G374: 2021 | H374: 2022 | I374: 2023 | J374: 2024 | K374: 2025 | L374: 2026 | M374: 2027 | O374: =O$13 -> 2029
A375: Reporting Basis | D375: =IF(D313=0, "", D313) -> 15745220.79 | E375: =IF(E313=0, "", E313) -> 10881927.07 | F375: =IF(F313=0, "", F313) -> 8768811.72 | G375: =IF($G$14=0, "", $G$14) -> MIFRS | H375: =IF($H$14=0, "", $H$14) -> MIFRS | I375: =IF($I$14=0, "", $I$14) -> MIFRS | J375: =IF($J$14=0, "", $J$14) -> MIFRS | K375: =IF($K$14=0, "", $K$14) -> MIFRS | L375: =IF($L$14=0, "", $L$14) -> MIFRS | M375: =IF($M$14=0, "", $M$14) -> MIFRS | O375: =IF($O$14=0, "", $O$14) -> MIFRS
A384: Total | D384: =SUM(D376:D383) -> 0 | E384: 0 | F384: 0 | G384: 0 | H384: 0 | I384: 0 | J384: 0 | K384: 0 | L384: 0 | M384: 0 | O384: =SUM(O376:O383) -> 0
... 40 more rows
